bitfinex-derivatives/quotes_SOLF0:USTF0_20240820
["timestamp","ask_amount","ask_price","bid_price","bid_amount"]
[1724170769342,32.41,142.05,142.04,3.5192]
[1724170771745,0.05313716,142.06,142.05,3.5191]
[1724170772549,0.05313716,142.06,142.05,4.81158093]
[1724170772769,0.05313716,142.06,142.05,3.5191]
[1724170773848,32.46313716,142.06,142.05,3.5191]
[1724170781553,0.05313716,142.06,142.05,3.5191]
[1724170783556,0.05313716,142.06,142.04,3.5192]
[1724170783953,32.41,142.05,142.04,3.5192]
[1724170784355,32.41,142.05,142.03,3.57098754]
[1724170784558,32.41,142.05,141.97,28.1]
[1724170784854,32.41,142.05,142.0,3.5203]
[1724170784855,32.41,142.01,142.0,3.5203]
[1724170785047,32.41,142.01,142.0,4.81309054]
[1724170786352,32.41,142.01,142.0,3.5203]
[1724170786652,32.41,142.01,142.0,4.81316079]
[1724170788059,32.41,142.01,142.0,3.5203]
[1724170788762,32.41,142.01,142.0,4.81322402]
[1724170789262,32.41,142.01,142.0,3.5203]
[1724170790461,12.98,142.01,142.0,3.5203]
[1724170792462,12.98,142.01,141.99,3.56909609]
[1724170792867,51.92,142.0,141.87,7.0467]
[1724170793063,12.98,141.95,141.89,3.881712]
[1724170793262,12.98,141.95,141.9,2.548512]
[1724170793464,12.98,141.95,141.94,3.5218]
[1724170793762,12.98,141.95,141.94,4.815012]
[1724170794566,12.98,141.95,141.94,3.5218]
[1724170795279,12.98,141.95,141.93,3.57224352]
[1724170795463,12.98,141.94,141.93,3.57224352]
[1724170795664,12.98,141.94,141.93,1.34384383]
[1724170795966,12.98,141.94,141.93,0.05034352]
[1724170796162,12.98,141.94,141.93,3.57234352]
[1724170796357,12.98,141.94,141.93,4.86584383]
[1724170796758,12.98,141.94,141.86,12.98]
[1724170796963,12.98,141.92,141.88,1.376]
[1724170797159,12.98,141.92,141.89,1.29350151]
[1724170797770,13.02920489,141.92,141.91,3.5225]
[1724170797968,13.02920489,141.92,141.91,4.81600151]
[1724170798157,0.04920489,141.92,141.91,4.81600151]
[1724170799875,13.02920489,141.92,141.91,4.81600151]
[1724170803372,1.3292,141.99,141.95,3.5215]
[1724170803373,3.5209,141.98,141.95,3.5215]
[1724170803572,12.98,141.96,141.9,3.46973341]
[1724170803869,12.98,141.94,141.91,1.29354894]
[1724170804179,12.98,141.94,141.93,3.522]
[1724170805068,13.03396634,141.95,141.94,3.5218]
[1724170806069,0.05396634,141.95,141.94,3.5218]
[1724170806776,3.5201,142.01,141.97,3.5209]
[1724170806978,12.98,141.98,141.93,1.3143]
[1724170807168,12.98,141.98,141.94,1.2933071]
[1724170807478,12.98,141.98,141.97,3.521]
[1724170808179,12.98,141.98,141.96,0.05373107]
[1724170808379,12.98,141.98,141.94,1.29328972]
[1724170808569,12.98,141.95,141.94,1.29328972]
[1724170809278,12.98,141.95,141.93,1.3143]
[1724170809475,13.02978662,141.95,141.93,1.3629804]
[1724170809868,13.02978662,141.95,141.94,3.5218]
[1724170810078,0.04978662,141.95,141.94,3.5218]
[1724170813478,32.50978662,141.95,141.93,3.5705804]
[1724170813877,36.03138662,141.95,141.88,2.5894]
[1724170814185,0.04978662,141.95,141.92,3.5222]
[1724170814375,32.46,141.93,141.92,3.5222]
[1724170814583,32.46,141.93,141.92,4.81576265]
[1724170814885,32.46,141.93,141.92,3.5222]
[1724170815083,32.46,141.93,141.92,1.29356342]
[1724170815279,32.46,141.93,141.91,3.5224]
[1724170815481,32.46,141.93,141.88,2.5894]
[1724170815686,0.04912219,141.92,141.91,3.5225]
[1724170815881,0.04912219,141.92,141.91,4.81612483]
[1724170817374,0.04912219,141.92,141.91,3.5225]
[1724170818882,0.04912219,141.92,141.91,4.81612984]
[1724170819391,0.04912219,141.92,141.91,3.5225]
[1724170819582,32.46,141.97,141.95,3.5215]
[1724170819989,32.46,141.99,141.9,32.46]
[1724170820186,1.2701,142.03,141.91,2.66999087]
[1724170820392,32.46,141.99,141.92,1.29329087]
[1724170820583,32.46,141.99,141.96,0.04988195]
[1724170820584,0.04631018,141.98,141.96,0.04988195]
[1724170821387,226.0,142.15,141.96,32.50988195]
[1724170821589,32.46,142.05,141.97,1.29327553]
[1724170821780,32.46,142.03,142.0,3.5201]
[1724170822782,32.46,142.03,142.0,3.56564998]
[1724170822985,32.50987188,142.03,142.0,3.56564998]
[1724170823291,32.46,142.01,142.0,3.56564998]
[1724170824494,32.46,142.01,141.91,33.7555]
[1724170824689,32.46,141.98,141.93,1.3177]
[1724170824895,6.09829283,142.07,141.95,3.5215]
[1724170824896,32.46,141.96,141.95,3.5215]
[1724170825191,32.46,141.96,141.93,1.3177]
[1724170825390,32.46,141.96,141.94,1.29337389]
[1724170825594,32.50583715,141.96,141.95,3.5215]
[1724170826486,32.50583715,141.96,141.94,0.04636176]
[1724170826695,32.46,141.95,141.89,1.29346818]
[1724170828296,32.46,141.95,141.93,3.5219]
[1724170829099,32.46,141.95,141.94,3.5218]
[1724170829299,32.46,141.95,141.88,1.377]
[1724170829496,32.46,141.95,141.89,1.29360628]
[1724170829707,0.04719235,141.93,141.92,3.5222]
[1724170829998,0.04719235,141.93,141.92,4.81580628]
[1724170830199,0.04719235,141.93,141.91,3.5225]
[1724170830504,32.46,141.92,141.85,6.20651338]
[1724170830696,32.46,141.89,141.86,1.29393133]
[1724170830897,32.46,141.89,141.88,3.5231]
[1724170831100,32.46,141.89,141.88,4.81703133]
[1724170831701,0.05011564,141.9,141.89,3.523]
[1724170831902,0.05011564,141.9,141.89,4.81693133]
[1724170832198,0.05011564,141.9,141.89,4.81689226]
[1724170835304,32.46,141.96,141.89,1.29389226]
[1724170835499,32.46,141.96,141.9,1.29389226]
[1724170835705,32.46,141.96,141.94,3.5218]
[1724170836406,32.50540947,141.96,141.94,3.56716645]
[1724170837099,32.50540947,141.96,141.94,0.04536645]
[1724170838199,32.50540947,141.96,141.94,3.56696645]
[1724170838699,32.50540947,141.96,141.95,3.5215]
[1724170840802,0.04540947,141.96,141.95,3.5215]
[1724170842910,32.50540947,141.96,141.95,3.5215]
[1724170844409,0.04540947,141.96,141.95,3.5215]
[1724170845902,1.3734,142.04,142.0,3.5202]
[1724170846108,32.46,142.02,141.94,32.46]
[1724170846310,32.46,142.02,141.95,1.29319903]
[1724170846506,32.46,142.02,141.95,2.62729903]
[1724170846710,32.46,142.02,141.99,3.5203]
[1724170847017,32.50805605,142.02,141.99,0.04465902]
[1724170848320,0.04805605,142.02,141.99,0.04465902]
[1724170848928,0.04805605,142.02,142.0,3.5203]
[1724170850411,0.04805605,142.02,142.01,3.52]
[1724170853416,32.50805605,142.02,142.0,3.5202]
[1724170856727,32.50805605,142.02,142.01,3.52]
[1724170856922,0.04805605,142.02,142.01,3.52]
[1724170861133,0.04805605,142.02,142.0,3.5201]
[1724170861427,32.50805605,142.02,142.0,3.5201]
[1724170861632,32.50805605,142.02,141.99,0.04465902]
[1724170862023,32.46,142.0,141.99,0.04465902]
[1724170863533,64.92,142.0,141.91,43.24270983]
[1724170863726,32.46,141.96,141.94,3.5216]
[1724170864040,32.46,141.96,141.91,1.3015]
[1724170864332,32.46,141.96,141.92,1.29349124]
[1724170864918,0.04546656,141.95,141.92,1.34288597]
[1724170865532,0.04546656,141.95,141.94,3.5216]
[1724170868040,32.46,141.98,141.96,3.5211]
[1724170868332,32.46,141.98,141.91,1.3015]
[1724170868536,32.46,141.98,141.95,3.5214]
[1724170869130,32.50894536,141.98,141.95,3.57252459]
[1724170869834,32.46,141.97,141.95,0.05112459]
[1724170871229,35.9812,141.97,141.95,0.05112459]
[1724170872339,32.46,141.97,141.95,0.05112459]
[1724170872822,32.46,141.97,141.95,3.57262459]
[1724170873734,35.9811,141.97,141.95,0.05112459]
[1724170874234,32.46,141.97,141.95,0.05112459]
[1724170875235,32.46,141.97,141.95,3.57252459]
[1724170875940,32.46,141.97,141.96,3.5213]
[1724170876133,32.46,141.97,141.95,0.05112459]
[1724170878131,32.46,141.97,141.95,3.57262459]
[1724170879637,32.46,141.97,141.95,0.05112459]
[1724170880942,0.04894536,141.98,141.95,0.05112459]
[1724170881240,32.46,141.97,141.95,0.05112459]
[1724170881540,0.04894536,141.98,141.95,0.05112459]
[1724170881952,0.04894536,141.98,141.97,3.521]
[1724170882239,32.46,142.02,141.94,2.6765]
[1724170882433,32.46,142.02,141.94,3.9469]
[1724170882834,32.46,142.0,141.94,3.9469]
[1724170883034,32.46,141.98,141.94,3.9469]
[1724170883230,32.5118239,141.98,141.96,0.04641262]
[1724170883730,32.46,141.97,141.87,11.84734991]
[1724170883938,32.46,141.97,141.94,3.5216]
[1724170884946,32.46,141.97,141.93,3.5219]
[1724170885142,32.46,141.97,141.88,3.9412]
[1724170885358,32.5056842,141.97,141.94,0.05355908]
[1724170885849,32.46,141.97,141.89,1.29350135]
[1724170886150,32.51145577,141.97,141.94,0.04668838]
[1724170887241,32.51145577,141.97,141.95,3.5215]
[1724170887648,32.51145577,141.97,141.94,0.04668838]
[1724170888852,32.51145577,141.97,141.94,3.56828838]
[1724170889752,32.51145577,141.97,141.95,3.5215]
[1724170890548,12.98,141.96,141.95,3.5215]
[1724170892644,0.05145577,141.97,141.96,3.5213]
[1724170893051,0.05145577,141.97,141.94,0.04668838]
[1724170893052,73.04,142.08,141.97,3.5209]
[1724170893251,12.98,142.0,141.94,13.02668838]
[1724170893754,12.98,142.0,141.94,12.98]
[1724170894354,0.04689489,141.98,141.96,0.04683967]
[1724170894851,0.04689489,141.98,141.97,3.5209]
[1724170895155,0.04689489,141.98,141.96,0.04683967]
[1724170895956,0.04689489,141.98,141.97,3.521]
[1724170899249,32.44,142.03,142.0,3.5202]
[1724170899450,32.44,142.03,141.94,35.0963]
[1724170899759,35.9597,142.03,141.99,3.5204]
[1724170900160,32.44,142.01,141.94,2.6563]
[1724170900366,32.44,141.99,141.94,2.6563]
[1724170900557,32.44,142.01,141.94,2.6563]
[1724170900755,32.44,142.01,141.99,3.5205]
[1724170901059,0.05375438,142.01,141.99,3.5205]
[1724170901262,0.05375438,142.01,142.0,3.5203]
[1724170905962,32.49375438,142.01,141.99,3.56580612]
[1724170907069,0.05375438,142.01,142.0,3.5203]
[1724170907663,32.44,142.07,142.03,3.5193]
[1724170907861,35.9587,142.07,142.03,3.5193]
[1724170908170,1.2566,142.1,141.99,0.04540612]
[1724170908171,32.44,142.05,142.02,3.5197]
[1724170908668,32.49299791,142.05,142.02,3.56545731]
[1724170908868,32.49299791,142.05,142.03,3.5195]
[1724170909270,32.49299791,142.05,142.02,0.04575731]
[1724170909271,32.49299791,142.05,142.02,3.56545731]
[1724170909664,36.01209791,142.05,142.02,3.56545731]
[1724170909864,36.01209791,142.05,142.02,0.04575731]
[1724170910167,32.49299791,142.05,142.02,0.04575731]
[1724170910876,32.49299791,142.05,142.02,3.56545731]
[1724170911072,36.01209791,142.05,142.02,3.56545731]
[1724170911457,32.49299791,142.05,142.02,3.56545731]
[1724170911669,32.49299791,142.05,142.03,3.5195]
[1724170911971,0.05299791,142.05,142.02,0.04575731]
[1724170912188,33.6966,142.1,142.02,0.04575731]
[1724170912563,3.5181,142.09,142.05,3.519]
[1724170913165,3.5181,142.09,142.06,0.05093952]
[1724170913166,0.05380912,142.08,142.06,0.05093952]
[1724170916066,0.05380912,142.08,142.06,3.56973952]
[1724170916977,32.44,142.07,142.06,3.56973952]
[1724170918575,13.01380912,142.08,142.07,3.5186]
[1724170919370,2.6293,142.14,142.09,3.5179]
[1724170919570,12.96,142.1,142.09,3.5179]
[1724170920170,12.96,142.13,142.06,12.96]
[1724170920577,0.04755704,142.11,142.08,0.04768369]
[1724170920777,0.04755704,142.11,142.1,3.5178]
[1724170921498,0.04755704,142.11,142.09,3.5179]
[1724170921679,32.38,142.1,142.08,0.04768369]
[1724170922176,32.38,142.1,142.08,3.56598369]
[1724170922970,32.38,142.1,142.08,0.04768369]
[1724170923371,32.38,142.1,142.03,1.3495]
[1724170923575,32.38,142.07,142.03,1.3495]
[1724170924174,32.38,142.07,142.05,3.5188]
[1724170924370,32.42774584,142.07,142.05,0.04437741]
[1724170925082,3.5188,142.06,141.99,3.9124]
[1724170925279,32.38,142.03,141.99,3.9124]
[1724170925678,32.38,142.03,142.0,1.29292854]
[1724170925876,32.38,142.05,142.03,3.5195]
[1724170926076,32.38,142.05,142.03,3.56662738]
[1724170926077,32.42609348,142.05,142.03,3.56662738]
[1724170926582,32.42609348,142.05,142.03,0.04712738]
[1724170927173,0.04609348,142.05,142.03,0.04712738]
[1724170927677,0.04609348,142.05,142.04,3.5193]
[1724170930471,32.38,142.11,142.07,3.5184]
[1724170931077,32.38,142.11,142.03,1.33502738]
[1724170931276,32.38,142.11,142.04,2.61693852]
[1724170931486,32.38,142.11,142.05,1.29253852]
[1724170931685,0.04773429,142.09,142.08,3.5181]
[1724170947587,32.38,142.14,142.06,0.05072019]
[1724170947790,32.38,142.12,142.04,35.0303]
[1724170947988,32.38,142.12,142.09,3.518]
[1724170948390,32.4244986,142.12,142.09,3.56477366]
[1724170948584,12.96,142.1,142.09,3.56477366]
[1724170948812,12.96,142.1,142.09,0.04677366]
[1724170950485,12.96,142.1,141.95,7.043]
[1724170950486,64.8,142.1,141.95,7.043]
[1724170950786,12.96,142.04,141.98,18.24864665]
[1724170950985,12.96,142.04,142.02,3.5197]
[1724170951185,51.84,142.08,141.98,3.9959]
[1724170951186,12.96,142.03,141.98,3.9959]
[1724170951394,12.96,142.03,141.99,0.05216593]
[1724170951595,0.05294757,142.02,142.0,3.5201]
[1724170952886,0.05294757,142.02,142.01,3.52]
[1724170953188,0.05294757,142.02,141.99,0.05216593]
[1724170953394,0.05294757,142.02,141.99,1.34523139]
[1724170953783,32.43,142.07,141.99,1.34523139]
[1724170953989,32.43,142.07,141.99,1.29306546]
[1724170954193,32.43,142.05,142.01,3.5199]
[1724170954800,0.05189038,142.04,142.02,0.04999506]
[1724170956287,0.05189038,142.04,142.02,3.56969506]
[1724170958594,0.05189038,142.04,142.02,0.04999506]
[1724170961188,0.05189038,142.04,142.02,3.56959506]
[1724170964418,0.05189038,142.04,142.03,3.5196]
[1724170967604,0.05189038,142.04,142.02,3.56959506]
[1724170968302,0.05189038,142.04,142.03,3.5196]
[1724170968703,32.48189038,142.04,142.02,0.04999506]
[1724170969903,32.48189038,142.04,142.02,3.56979506]
[1724170970601,3.5196,142.03,142.02,0.04999506]
[1724170970806,3.5196,142.03,141.99,3.5204]
[1724170971010,32.43,142.01,141.99,3.5204]
[1724170971697,32.43,142.01,141.99,3.56956454]
[1724170972507,12.98,142.0,141.99,3.56956454]
[1724170973012,13.03303313,142.01,141.99,3.56956454]
[1724170981416,13.03303313,142.01,141.99,0.04916454]
[1724170981915,13.03303313,142.01,141.99,3.56956454]
[1724170983006,0.05303313,142.01,142.0,3.5203]
[1724170984012,13.03303313,142.01,141.99,3.56966454]
[1724170984918,13.03303313,142.01,142.0,3.5203]
[1724170988419,0.05303313,142.01,142.0,3.5203]
[1724170988817,3.49145699,142.09,141.99,0.04916454]
[1724170989025,12.98,142.06,142.0,12.98]
[1724170989416,12.98,142.06,142.03,3.5195]
[1724170989916,13.02435303,142.06,142.03,3.56430064]
[1724170990824,13.02435303,142.06,142.04,3.5193]
[1724170994920,16.54325303,142.06,142.03,3.56430064]
[1724170995122,12.98,142.04,142.03,3.56430064]
[1724170995833,0.04435303,142.06,142.03,0.04480064]
[1724170996029,0.04435303,142.06,142.04,12.98]
[1724170996228,3.5167,142.15,142.12,3.5172]
[1724170996522,14.3232,142.16,142.09,12.98]
[1724170996726,12.98,142.16,142.09,12.98]
[1724170996915,12.98,142.16,142.11,12.98]
[1724170997118,0.05065457,142.15,142.11,12.98]
[1724170997318,0.05065457,142.15,142.12,0.04442458]
[1724170997512,0.05065457,142.15,142.12,3.56162458]
[1724170998528,0.05065457,142.15,142.12,0.04442458]
[1724170999428,0.05065457,142.15,142.13,3.5171]
[1724170999623,0.05065457,142.15,142.12,0.04442458]
[1724171000128,0.05065457,142.15,142.14,3.5168]
[1724171000425,12.98,142.19,142.12,13.02442458]
[1724171000828,12.98,142.17,142.12,0.04442458]
[1724171001028,12.98,142.17,142.11,12.98]
[1724171001533,12.98,142.17,142.14,3.5167]
[1724171001534,0.05197269,142.15,142.14,3.5167]
[1724171002426,12.98,142.18,142.13,0.04799111]
[1724171003331,13.03279922,142.17,142.13,0.04799111]
[1724171003827,12.98,142.16,142.13,0.04799111]
[1724171004320,12.98,142.14,142.13,0.04799111]
[1724171004829,16.4968,142.14,142.13,0.04799111]
[1724171005034,12.98,142.14,142.13,0.04799111]
[1724171005727,3.5167,142.15,142.13,0.04799111]
[1724171005933,12.98,142.14,142.13,0.04799111]
[1724171009133,3.5165,142.16,142.13,0.04799111]
[1724171009326,12.98,142.14,142.13,0.04799111]
[1724171015025,16.4968,142.14,142.13,0.04799111]
[1724171015640,12.98,142.14,142.13,0.04799111]
[1724171016333,16.4968,142.14,142.13,0.04799111]
[1724171019531,3.5173,142.13,142.1,3.5177]
[1724171019730,12.98,142.11,142.1,3.5177]
[1724171020742,12.98,142.11,142.09,3.56961645]
[1724171021239,13.03294829,142.11,142.1,3.5178]
[1724171024142,13.03294829,142.11,142.09,3.56852746]
[1724171024335,13.03294829,142.11,142.09,0.05052746]
[1724171024529,13.03294829,142.11,142.1,3.5178]
[1724171025438,0.05294829,142.11,142.1,3.5178]
[1724171025832,0.05294829,142.11,142.09,3.56852746]
[1724171026140,13.03294829,142.11,142.09,3.56852746]
[1724171026334,13.03294829,142.11,142.09,0.05052746]
[1724171026539,13.03294829,142.11,142.1,3.5178]
[1724171029248,13.03294829,142.11,142.09,3.56852746]
[1724171029750,13.03294829,142.11,142.1,3.5178]
[1724171030836,13.03294829,142.11,142.09,3.56842746]
[1724171031036,0.05294829,142.11,142.09,3.56842746]
[1724171031236,13.03294829,142.11,142.09,3.56842746]
[1724171032442,12.98,142.1,142.09,0.05052746]
[1724171035642,16.4978,142.1,142.03,2.5722]
[1724171035947,12.98,142.09,142.03,2.5722]
[1724171036133,16.4981,142.09,142.03,2.5722]
[1724171036751,0.04772327,142.07,142.06,3.5187]
[1724171040951,13.02772327,142.07,142.05,0.05159131]
[1724171041354,0.04772327,142.07,142.05,0.05159131]
[1724171041568,0.04772327,142.07,142.05,3.57049131]
[1724171042047,0.04772327,142.07,142.06,3.5188]
[1724171042244,0.04772327,142.07,142.05,0.05159131]
[1724171043753,0.04772327,142.07,142.05,3.57049131]
[1724171044856,0.04772327,142.07,142.06,3.5188]
[1724171045057,0.04772327,142.07,142.05,0.05159131]
[1724171045552,13.02772327,142.07,142.05,0.05159131]
[1724171047852,16.54632327,142.07,142.05,0.05159131]
[1724171049066,0.04772327,142.07,142.05,0.05159131]
[1724171049257,13.02772327,142.07,142.05,0.05159131]
[1724171050055,12.98,142.06,142.05,0.05159131]
[1724171061272,16.4988,142.06,142.05,0.05159131]
[1724171063568,12.98,142.06,142.05,0.05159131]
[1724171063969,16.4988,142.06,142.05,0.05159131]
[1724171067069,12.98,142.06,142.05,0.05159131]
[1724171068673,0.04772327,142.07,142.05,0.05159131]
[1724171069269,0.04772327,142.07,142.06,3.5188]
[1724171071781,0.04772327,142.07,142.05,3.57049131]
[1724171072075,12.98,142.06,142.05,3.57049131]
[1724171074083,13.02772327,142.07,142.05,3.57049131]
[1724171075680,13.02772327,142.07,142.06,3.5188]
[1724171078712,13.02772327,142.07,142.05,3.57049131]
[1724171084679,13.02772327,142.07,142.05,0.05159131]
[1724171084878,12.98,142.06,142.05,0.05159131]
[1724171085087,12.98,142.06,142.0,1.3287]
[1724171085286,12.98,142.03,142.0,1.3287]
[1724171085594,16.4992,142.05,142.02,3.5197]
[1724171086179,13.02547464,142.05,142.03,3.5195]
[1724171089397,0.04547464,142.05,142.04,3.5193]
[1724171092791,0.04547464,142.05,142.02,13.02724045]
[1724171092792,0.04547464,142.05,142.02,0.04724045]
[1724171093794,0.04547464,142.05,142.04,3.5193]
[1724171095290,12.98,142.08,142.05,3.5188]
[1724171096100,12.98,142.08,142.04,3.5192]
[1724171096509,16.4983,142.08,142.04,3.5192]
[1724171096705,16.4983,142.08,142.05,3.519]
[1724171096902,0.04515355,142.07,142.05,3.56436512]
[1724171097104,13.02515355,142.07,142.05,3.56436512]
[1724171098402,13.02515355,142.07,142.05,0.04536512]
[1724171099103,13.02515355,142.07,142.05,3.56426512]
[1724171101611,13.02515355,142.07,142.05,0.04536512]
[1724171103115,16.54375355,142.07,142.05,0.04536512]
[1724171105211,16.54375355,142.07,142.05,3.56436512]
[1724171105212,13.02515355,142.07,142.05,3.56436512]
[1724171105410,0.04515355,142.07,142.05,3.56436512]
[1724171108117,0.04515355,142.07,142.06,3.5188]
[1724171109221,3.5175,142.12,142.05,0.04536512]
[1724171109432,12.98,142.11,142.05,2.5599]
[1724171110718,0.04960128,142.09,142.08,3.5183]
[1724171119533,12.98,142.14,142.11,3.5174]
[1724171120532,13.03246105,142.14,142.11,3.57065201]
[1724171122434,13.03246105,142.14,142.11,0.05325201]
[1724171122837,0.05246105,142.14,142.11,0.05325201]
[1724171123437,0.05246105,142.14,142.13,3.5171]
[1724171125929,3.5127633,142.22,142.16,3.5162]
[1724171126238,12.98,142.19,142.16,3.5162]
[1724171126827,12.98,142.19,142.13,12.98]
[1724171127035,13.03029043,142.19,142.16,0.04700468]
[1724171128040,13.03029043,142.19,142.17,3.516]
[1724171128442,12.98,142.18,142.16,0.04700468]
[1724171128940,12.98,142.18,142.16,3.56330468]
[1724171129536,12.98,142.17,142.16,0.04700468]
[1724171131350,12.98,142.18,142.16,0.04700468]
[1724171131536,12.98,142.18,142.16,3.56330468]
[1724171132635,0.05029043,142.19,142.16,0.04700468]
[1724171133027,0.05029043,142.19,142.17,3.5158]
[1724171133344,16.4947,142.23,142.16,13.02700468]
[1724171133538,16.4947,142.23,142.16,14.32130468]
[1724171133837,16.4947,142.23,142.19,3.5153]
[1724171134237,0.05101241,142.22,142.2,0.04652218]
[1724171136232,0.05101241,142.22,142.21,3.5151]
[1724171136433,0.05101241,142.22,142.2,0.04652218]
[1724171136832,0.05101241,142.22,142.2,3.56172218]
[1724171142146,3.56591241,142.22,142.2,3.56172218]
[1724171142343,12.98,142.21,142.2,0.04652218]
[1724171142747,3.5155,142.2,142.16,1.2943]
[1724171142947,12.98,142.18,142.16,1.2943]
[1724171143346,3.5155,142.2,142.16,1.2943]
[1724171143347,3.5151,142.21,142.16,1.2943]
[1724171143548,16.4951,142.21,142.16,1.2943]
[1724171143744,9.7547,142.28,142.17,0.05392942]
[1724171143948,12.98,142.22,142.21,0.05288428]
[1724171144445,16.4948,142.22,142.21,0.05288428]
[1724171145440,16.4948,142.22,142.16,1.2943]
[1724171145640,12.98,142.2,142.16,1.2943]
[1724171145841,12.98,142.2,142.19,3.5154]
[1724171146053,12.98,142.2,142.16,1.2943]
[1724171146550,12.98,142.2,142.18,3.5156]
[1724171146750,0.04611421,142.19,142.18,3.5156]
[1724171149754,13.02611421,142.19,142.17,0.05243954]
[1724171150855,3.5158,142.18,142.17,0.05243954]
[1724171151452,13.02611421,142.19,142.17,0.05243954]
[1724171152053,3.5158,142.18,142.17,0.05243954]
[1724171152658,16.54181421,142.19,142.17,0.05243954]
[1724171154061,3.56181421,142.19,142.17,0.05243954]
[1724171154358,16.54181421,142.19,142.17,0.05243954]
[1724171155157,3.5158,142.18,142.17,0.05243954]
[1724171155653,16.54181421,142.19,142.17,0.05243954]
[1724171156664,3.5158,142.18,142.17,0.05243954]
[1724171158355,16.54181421,142.19,142.17,0.05243954]
[1724171158657,13.02611421,142.19,142.17,0.05243954]
[1724171159062,3.5158,142.18,142.17,0.05243954]
[1724171159757,13.02611421,142.19,142.12,3.5171]
[1724171160062,12.98,142.15,142.08,14.3211]
[1724171160366,3.5169,142.14,142.11,3.5173]
[1724171160957,3.56258854,142.14,142.12,3.5172]
[1724171161157,0.04568854,142.14,142.11,0.04745365]
[1724171161360,0.04568854,142.14,142.12,12.98]
[1724171161554,16.4959,142.18,142.12,12.98]
[1724171162057,16.4958,142.19,142.15,3.5165]
[1724171162455,0.04950431,142.18,142.16,0.05297339]
[1724171162767,0.04950431,142.18,142.16,3.56917339]
[1724171163461,0.04950431,142.18,142.17,3.5161]
[1724171171067,0.04950431,142.18,142.16,3.56927339]
[1724171171269,0.04950431,142.18,142.16,0.05297339]
[1724171172068,12.98,142.17,142.16,0.05297339]
[1724171172266,0.04950431,142.18,142.16,0.05297339]
[1724171172952,0.04950431,142.18,142.17,3.5161]
[1724171173469,12.98,142.22,142.16,13.03297339]
[1724171174566,0.05249901,142.2,142.19,3.5155]
[1724171176962,0.05249901,142.2,142.18,3.56351795]
[1724171179166,0.05249901,142.2,142.19,3.5156]
[1724171185002,0.05249901,142.2,142.19,16.4956]
[1724171185279,12.98,142.28,142.19,14.27126267]
[1724171185587,12.98,142.27,142.24,3.5143]
[1724171185873,16.4938,142.27,142.2,12.98]
[1724171186381,16.4938,142.27,142.23,3.5145]
[1724171186573,12.98,142.25,142.17,7.36243546]
[1724171186762,12.98,142.24,142.22,0.04830929]
[1724171187570,12.98,142.24,142.22,3.56310929]
[1724171187966,12.98,142.24,142.22,0.04830929]
[1724171190578,12.98,142.23,142.22,0.04830929]
[1724171190973,16.4946,142.23,142.22,0.04830929]
[1724171197086,12.98,142.23,142.22,0.04830929]
[1724171197681,12.98,142.23,142.22,3.56310929]
[1724171199081,16.4946,142.23,142.22,0.04830929]
[1724171206691,16.4946,142.23,142.17,1.3497]
[1724171206692,3.5155,142.2,142.17,1.3497]
[1724171207000,12.98,142.19,142.17,1.3497]
[1724171207490,12.98,142.19,142.18,3.5158]
[1724171207691,0.04619875,142.2,142.17,1.3963545]
[1724171208194,0.04619875,142.2,142.19,3.5156]
[1724171212000,0.04619875,142.2,142.18,3.5157]
[1724171213710,3.56159875,142.2,142.17,3.5625545]
[1724171213908,0.04619875,142.2,142.17,0.0466545]
[1724171215511,3.56159875,142.2,142.17,3.5626545]
[1724171216006,12.98,142.19,142.17,0.0466545]
[1724171216402,16.4958,142.18,142.17,0.0466545]
[1724171220011,12.98,142.18,142.17,0.0466545]
[1724171220416,3.5157,142.19,142.17,0.0466545]
[1724171220608,0.04619875,142.2,142.17,0.0466545]
[1724171220609,13.02619875,142.2,142.17,3.5627545]
[1724171221116,16.54169875,142.2,142.17,3.5627545]